[Event "Early-Titled-Tuesday-Blitz-May-28-2024"]
[Site "Chess.com"]
[Date "2024.05.28"]
[Round "4"]
[White "briesmas"]
[Black "eltenedor"]
[Result "1-0"]
[WhiteElo "2403"]
[BlackElo "2176"]
[TimeControl "180+1"]
[EndTime "8:41:14 PDT"]
[Termination "briesmas won on time"]

1. e4 {[%clk 0:02:59.5]} 1... b6 {[%clk 0:02:58.5]} 2. d4 {[%clk 0:02:51.8]}
2... Bb7 {[%clk 0:02:58.3]} 3. Bd3 {[%clk 0:02:47.8]} 3... e6 {[%clk 0:02:55.3]}
4. Nf3 {[%clk 0:02:47.2]} 4... d6 {[%clk 0:02:53.7]} 5. O-O {[%clk 0:02:46.9]}
5... g6 {[%clk 0:02:53.7]} 6. Bg5 {[%clk 0:02:44.1]} 6... f6 {[%clk 0:02:49.4]}
7. Bh4 {[%clk 0:02:42.9]} 7... g5 {[%clk 0:02:12.3]} 8. Nxg5 {[%clk 0:02:30.6]}
8... fxg5 {[%clk 0:02:01]} 9. Qh5+ {[%clk 0:02:28.8]} 9... Kd7 {[%clk
0:01:59.9]} 10. Bxg5 {[%clk 0:02:23.1]} 10... Be7 {[%clk 0:01:44.6]} 11. f4
{[%clk 0:02:12.3]} 11... Nf6 {[%clk 0:01:27]} 12. Qh3 {[%clk 0:02:04.8]} 12...
Nxe4 {[%clk 0:01:06.1]} 13. Bxe7 {[%clk 0:02:04.1]} 13... Qxe7 {[%clk
0:01:03.2]} 14. f5 {[%clk 0:02:03.6]} 14... exf5 {[%clk 0:00:30.4]} 15. Rxf5
{[%clk 0:02:02.1]} 15... Kd8 {[%clk 0:00:21.4]} 16. Nc3 {[%clk 0:01:16.8]} 16...
Nxc3 {[%clk 0:00:17.4]} 17. bxc3 {[%clk 0:01:17.7]} 17... Nd7 {[%clk 0:00:12.6]}
18. Raf1 {[%clk 0:01:16.2]} 18... Rf8 {[%clk 0:00:10]} 19. Rxf8+ {[%clk
0:01:08.4]} 19... Nxf8 {[%clk 0:00:10.9]} 20. Qh6 {[%clk 0:01:05.2]} 20... Nd7
{[%clk 0:00:04.1]} 21. Bxh7 {[%clk 0:00:21.6]} 21... c5 {[%clk 0:00:04.1]} 22.
Bd3 {[%clk 0:00:19]} 22... Kc7 {[%clk 0:00:04.1]} 23. Qd2 {[%clk 0:00:17.3]}
23... Re8 {[%clk 0:00:04.6]} 24. Kh1 {[%clk 0:00:15.3]} 24... Qe3 {[%clk
0:00:04.9]} 25. Qd1 {[%clk 0:00:14.2]} 25... cxd4 {[%clk 0:00:05]} 26. cxd4
{[%clk 0:00:14.2]} 26... Bc6 {[%clk 0:00:05.4]} 27. c3 {[%clk 0:00:13.3]} 27...
Qe6 {[%clk 0:00:04.9]} 28. Qd2 {[%clk 0:00:11.3]} 28... Be4 {[%clk 0:00:04.9]}
29. Bb5 {[%clk 0:00:10]} 29... Nf8 {[%clk 0:00:04.1]} 30. Bxe8 {[%clk
0:00:06.8]} 30... Qxe8 {[%clk 0:00:03.8]} 31. Qe2 {[%clk 0:00:05]} 31... Nd7
{[%clk 0:00:03.8]} 32. Re1 {[%clk 0:00:04.8]} 32... d5 {[%clk 0:00:04]} 33. Qe3
{[%clk 0:00:03.4]} 33... Nf6 {[%clk 0:00:04.1]} 34. Qf4+ {[%clk 0:00:03.5]}
34... Kc6 {[%clk 0:00:03]} 35. Qxf6+ {[%clk 0:00:03.8]} 35... Kb5 {[%clk
0:00:03.4]} 36. Qf2 {[%clk 0:00:04.3]} 36... Kc6 {[%clk 0:00:03.1]} 37. Qe2
{[%clk 0:00:04.2]} 37... Kd6 {[%clk 0:00:03]} 38. Kg1 {[%clk 0:00:04.6]} 38...
Qg6 {[%clk 0:00:03.2]} 39. Qf2 {[%clk 0:00:04.3]} 39... Kc6 {[%clk 0:00:03.1]}
40. h3 {[%clk 0:00:04.6]} 40... a5 {[%clk 0:00:03.4]} 41. Rc1 {[%clk 0:00:03.9]}
41... Kb5 {[%clk 0:00:03.8]} 42. a3 {[%clk 0:00:03.4]} 42... Kc6 {[%clk
0:00:04.2]} 43. c4 {[%clk 0:00:03.2]} 43... dxc4 {[%clk 0:00:04]} 44. Rxc4+
{[%clk 0:00:04.1]} 44... Kd5 {[%clk 0:00:04.6]} 45. Rc1 {[%clk 0:00:04.6]} 45...
Qg7 {[%clk 0:00:04]} 46. Rd1 {[%clk 0:00:04.6]} 46... Qc7 {[%clk 0:00:03.8]} 47.
Rd2 {[%clk 0:00:04.6]} 47... Qc3 {[%clk 0:00:04]} 48. Kh2 {[%clk 0:00:02.4]}
48... Qxa3 {[%clk 0:00:03.8]} 49. Rd1 {[%clk 0:00:02.7]} 49... Qd6+ {[%clk
0:00:04]} 50. Qg3 {[%clk 0:00:02.4]} 50... Qd7 {[%clk 0:00:03.5]} 51. Rd2 {[%clk
0:00:02.4]} 51... Kc6 {[%clk 0:00:03.4]} 52. Qf4 {[%clk 0:00:02.5]} 52... Qd5
{[%clk 0:00:03.3]} 53. g4 {[%clk 0:00:03]} 53... Kb7 {[%clk 0:00:03.3]} 54. g5
{[%clk 0:00:03.6]} 54... Ka6 {[%clk 0:00:03.8]} 55. h4 {[%clk 0:00:04.3]} 55...
Qc6 {[%clk 0:00:02.3]} 56. h5 {[%clk 0:00:04.6]} 56... Qc3 {[%clk 0:00:02.8]}
57. g6 {[%clk 0:00:03.4]} 57... Bd5 {[%clk 0:00:02.8]} 58. g7 {[%clk 0:00:03]}
58... Qc1 {[%clk 0:00:02.8]} 59. h6 {[%clk 0:00:02.1]} 59... Qh1+ {[%clk
0:00:03.7]} 60. Kg3 {[%clk 0:00:02.4]} 60... Qg1+ {[%clk 0:00:03]} 61. Kh4
{[%clk 0:00:01.7]} 61... Qh1+ {[%clk 0:00:02.9]} 62. Kg5 {[%clk 0:00:02]} 62...
Be6 {[%clk 0:00:02.7]} 63. Kf6 {[%clk 0:00:02.3]} 63... Qh3 {[%clk 0:00:02.2]}
64. Ke7 {[%clk 0:00:01.7]} 64... Bd5 {[%clk 0:00:02.4]} 65. Qf6 {[%clk
0:00:01.2]} 65... Qc8 {[%clk 0:00:02.6]} 66. Qd6 {[%clk 0:00:01.1]} 66... Bc6
{[%clk 0:00:02.8]} 67. Kf6 {[%clk 0:00:01.3]} 67... Qe8 {[%clk 0:00:02.8]} 68.
Kg5 {[%clk 0:00:01.6]} 68... Qe3+ {[%clk 0:00:02.4]} 69. Kf6 {[%clk 0:00:01.6]}
69... Qxd2 {[%clk 0:00:02.6]} 70. g8=Q {[%clk 0:00:01.9]} 70... Qxh6+ {[%clk
0:00:02.7]} 71. Qg6 {[%clk 0:00:02.1]} 71... Qh8+ {[%clk 0:00:01.8]} 72. Qg7
{[%clk 0:00:02.3]} 72... Qh5 {[%clk 0:00:02.1]} 73. Ke7 {[%clk 0:00:02.6]} 73...
Qg5+ {[%clk 0:00:02.3]} 74. Qxg5 {[%clk 0:00:02.6]} 74... Bb5 {[%clk 0:00:01.6]}
75. Qgg3 {[%clk 0:00:03.4]} 75... a4 {[%clk 0:00:02]} 76. Qga3 {[%clk 0:00:04]}
1-0

[Event "Early-Titled-Tuesday-Blitz-May-28-2024"]
[Site "Chess.com"]
[Date "2024.05.28"]
[Round "4"]
[White "Chopper1905"]
[Black "monomita"]
[Result "1-0"]
[WhiteElo "2968"]
[BlackElo "2738"]
[TimeControl "180+1"]
[EndTime "8:41:15 PDT"]
[Termination "Chopper1905 won by resignation"]

1. c4 {[%clk 0:03:00.9]} 1... e5 {[%clk 0:03:00.2]} 2. g3 {[%clk 0:02:55.9]}
2... Nf6 {[%clk 0:03:00.2]} 3. Bg2 {[%clk 0:02:55.8]} 3... c6 {[%clk 0:03:00.8]}
4. d4 {[%clk 0:02:50.3]} 4... e4 {[%clk 0:03:00.7]} 5. Bg5 {[%clk 0:02:42.6]}
5... d5 {[%clk 0:02:59.7]} 6. Nc3 {[%clk 0:02:39.6]} 6... Bb4 {[%clk 0:03:00]}
7. Qb3 {[%clk 0:02:34.4]} 7... Qa5 {[%clk 0:02:57.9]} 8. Bxf6 {[%clk 0:02:32]}
8... gxf6 {[%clk 0:02:57.8]} 9. cxd5 {[%clk 0:02:22.7]} 9... cxd5 {[%clk
0:02:57.5]} 10. Rc1 {[%clk 0:02:03]} 10... Nc6 {[%clk 0:02:56.9]} 11. e3 {[%clk
0:02:03.1]} 11... Bg4 {[%clk 0:02:53.4]} 12. Nh3 {[%clk 0:02:02]} 12... Qa6
{[%clk 0:02:27.5]} 13. Nf4 {[%clk 0:01:57.5]} 13... Rd8 {[%clk 0:02:27.1]} 14.
h3 {[%clk 0:01:54.3]} 14... Be6 {[%clk 0:02:21.6]} 15. Bf1 {[%clk 0:01:46.6]}
15... Qa5 {[%clk 0:02:15.7]} 16. a3 {[%clk 0:01:46.8]} 16... Bxc3+ {[%clk
0:02:16]} 17. Rxc3 {[%clk 0:01:45.2]} 17... Qc7 {[%clk 0:01:44.1]} 18. Bb5
{[%clk 0:01:45]} 18... O-O {[%clk 0:01:42.6]} 19. O-O {[%clk 0:01:44.2]} 19...
Qb6 {[%clk 0:01:39.4]} 20. Bxc6 {[%clk 0:01:11.6]} 20... Qxb3 {[%clk 0:01:38.7]}
21. Rxb3 {[%clk 0:01:12.5]} 21... bxc6 {[%clk 0:01:39]} 22. Rc1 {[%clk
0:01:13.2]} 22... Rd6 {[%clk 0:01:17.1]} 23. Rb7 {[%clk 0:01:10.8]} 23... Rd7
{[%clk 0:01:17]} 24. Rxd7 {[%clk 0:01:03.1]} 24... Bxd7 {[%clk 0:01:16.3]} 25.
Nh5 {[%clk 0:01:03.2]} 25... Bxh3 {[%clk 0:01:10.9]} 26. Nxf6+ {[%clk
0:01:03.3]} 26... Kg7 {[%clk 0:01:10.7]} 27. Rxc6 {[%clk 0:01:02.9]} 27... Rb8
{[%clk 0:01:09.8]} 28. b4 {[%clk 0:01:01.6]} 28... Be6 {[%clk 0:01:01.5]} 29.
Nh5+ {[%clk 0:00:55.8]} 29... Kf8 {[%clk 0:01:01.1]} 30. Nf4 {[%clk 0:00:54.6]}
30... a5 {[%clk 0:00:56]} 31. Nxe6+ {[%clk 0:00:41.5]} 31... fxe6 {[%clk
0:00:54.8]} 32. bxa5 {[%clk 0:00:42.4]} 32... Ke7 {[%clk 0:00:52.2]} 33. a6
{[%clk 0:00:42.2]} 33... Rb3 {[%clk 0:00:50.4]} 34. Rc7+ {[%clk 0:00:36.4]}
34... Kf6 {[%clk 0:00:49.2]} 35. Rxh7 {[%clk 0:00:34.5]} 35... Rxa3 {[%clk
0:00:48.7]} 36. a7 {[%clk 0:00:35.1]} 36... e5 {[%clk 0:00:44.1]} 37. dxe5+
{[%clk 0:00:33.2]} 37... Kxe5 {[%clk 0:00:45]} 38. Kg2 {[%clk 0:00:26.2]} 38...
Kf5 {[%clk 0:00:32.5]} 39. Rb7 {[%clk 0:00:20.2]} 39... Ra1 {[%clk 0:00:26.3]}
40. Rd7 {[%clk 0:00:17.2]} 40... Ke5 {[%clk 0:00:26.6]} 41. g4 {[%clk
0:00:16.3]} 41... Ke6 {[%clk 0:00:26.6]} 42. Rb7 {[%clk 0:00:15.6]} 42... Ke5
{[%clk 0:00:24.3]} 43. Kg3 {[%clk 0:00:16.1]} 43... Ra2 {[%clk 0:00:17.7]} 44.
Kh4 {[%clk 0:00:14.9]} 44... Kf6 {[%clk 0:00:16.6]} 45. g5+ {[%clk 0:00:12.9]}
45... Kf5 {[%clk 0:00:15.2]} 46. Rg7 {[%clk 0:00:06.4]} 46... Ra1 {[%clk
0:00:13.8]} 47. Kg3 {[%clk 0:00:06.5]} 47... Rg1+ {[%clk 0:00:13.2]} 48. Kh2
{[%clk 0:00:07]} 48... Ra1 {[%clk 0:00:13.2]} 49. Kg2 {[%clk 0:00:07.5]} 49...
Ra2 {[%clk 0:00:12.9]} 50. Kf1 {[%clk 0:00:06.9]} 50... Ra1+ {[%clk 0:00:03.3]}
51. Ke2 {[%clk 0:00:07.3]} 51... Ra3 {[%clk 0:00:03.6]} 52. Kd2 {[%clk
0:00:07.6]} 52... Ke5 {[%clk 0:00:03.2]} 53. Kc2 {[%clk 0:00:07.8]} 53... Ra6
{[%clk 0:00:01.8]} 54. Kb3 {[%clk 0:00:07.9]} 54... Ra1 {[%clk 0:00:02.1]} 55.
Kb4 {[%clk 0:00:08]} 55... Kd6 {[%clk 0:00:02.3]} 56. Kb5 {[%clk 0:00:07.1]}
56... Rb1+ {[%clk 0:00:02.5]} 57. Ka6 {[%clk 0:00:07.4]} 57... Ra1+ {[%clk
0:00:03]} 58. Kb7 {[%clk 0:00:07.3]} 58... Rb1+ {[%clk 0:00:03.9]} 59. Kc8
{[%clk 0:00:07.4]} 59... Rc1+ {[%clk 0:00:03.4]} 60. Kb8 {[%clk 0:00:07.4]}
60... d4 {[%clk 0:00:01]} 61. a8=Q {[%clk 0:00:06.3]} 61... Rb1+ {[%clk
0:00:01.9]} 62. Rb7 {[%clk 0:00:05.7]} 62... Rxb7+ {[%clk 0:00:02.8]} 63. Qxb7
{[%clk 0:00:06.1]} 63... dxe3 {[%clk 0:00:03.7]} 64. Qxe4 {[%clk 0:00:06.7]}
64... exf2 {[%clk 0:00:03.6]} 65. Qf4+ {[%clk 0:00:07.2]} 65... Kc6 {[%clk
0:00:04.5]} 66. Qxf2 {[%clk 0:00:08.1]} 66... Kd5 {[%clk 0:00:05]} 67. g6 {[%clk
0:00:09]} 67... Ke6 {[%clk 0:00:05.7]} 68. g7 {[%clk 0:00:09.9]} 68... Kd5
{[%clk 0:00:05.5]} 69. g8=Q+ {[%clk 0:00:10.4]} 1-0

[Event "Early-Titled-Tuesday-Blitz-May-28-2024"]
[Site "Chess.com"]
[Date "2024.05.28"]
[Round "4"]
[White "HajiyevKanan"]
[Black "wild3000"]
[Result "1/2-1/2"]
[WhiteElo "2522"]
[BlackElo "2351"]
[TimeControl "180+1"]
[EndTime "8:41:18 PDT"]
[Termination "Game drawn by 50-move rule"]

1. d4 {[%clk 0:03:00.9]} 1... d5 {[%clk 0:02:56]} 2. Nf3 {[%clk 0:03:01.7]} 2...
Nf6 {[%clk 0:02:54.2]} 3. c4 {[%clk 0:03:02.6]} 3... e6 {[%clk 0:02:53.4]} 4.
cxd5 {[%clk 0:03:03.5]} 4... exd5 {[%clk 0:02:53.4]} 5. Nc3 {[%clk 0:03:04.4]}
5... Be7 {[%clk 0:02:53.4]} 6. Qc2 {[%clk 0:03:05]} 6... O-O {[%clk 0:02:53.4]}
7. Bf4 {[%clk 0:03:05.6]} 7... c6 {[%clk 0:02:53.7]} 8. e3 {[%clk 0:03:05.9]}
8... Nbd7 {[%clk 0:02:53.8]} 9. Bd3 {[%clk 0:03:06.3]} 9... Re8 {[%clk
0:02:52.8]} 10. O-O {[%clk 0:03:06.5]} 10... h6 {[%clk 0:02:49.5]} 11. h3 {[%clk
0:03:06.7]} 11... Nf8 {[%clk 0:02:47.4]} 12. Rab1 {[%clk 0:03:06.7]} 12... a5
{[%clk 0:02:40.5]} 13. Na4 {[%clk 0:03:06.8]} 13... Ne6 {[%clk 0:02:21.2]} 14.
Be5 {[%clk 0:03:06.4]} 14... Bd6 {[%clk 0:02:15.7]} 15. Rfc1 {[%clk 0:02:57.5]}
15... Bxe5 {[%clk 0:02:13.1]} 16. Nxe5 {[%clk 0:02:58.2]} 16... Nd7 {[%clk
0:02:12.9]} 17. Nxd7 {[%clk 0:02:56.6]} 17... Bxd7 {[%clk 0:02:12.5]} 18. Nc5
{[%clk 0:02:56.9]} 18... Nxc5 {[%clk 0:01:59.6]} 19. Qxc5 {[%clk 0:02:57.8]}
19... Qe7 {[%clk 0:01:55.7]} 20. b3 {[%clk 0:02:57.6]} 20... Qxc5 {[%clk
0:01:47.6]} 21. dxc5 {[%clk 0:02:48.4]} 21... g6 {[%clk 0:01:44.1]} 22. h4
{[%clk 0:02:48.3]} 22... Kg7 {[%clk 0:01:43.7]} 23. Kf1 {[%clk 0:02:46.4]} 23...
Kf6 {[%clk 0:01:43.6]} 24. a3 {[%clk 0:02:41.9]} 24... Bf5 {[%clk 0:01:43.5]}
25. Ke2 {[%clk 0:02:40.8]} 25... Bxd3+ {[%clk 0:01:42.8]} 26. Kxd3 {[%clk
0:02:41.7]} 26... Re4 {[%clk 0:01:42.6]} 27. g3 {[%clk 0:02:41]} 27... h5 {[%clk
0:01:29.5]} 28. f3 {[%clk 0:02:39.5]} 28... Re7 {[%clk 0:01:25.5]} 29. Kd4
{[%clk 0:02:39.9]} 29... Kg7 {[%clk 0:01:19.7]} 30. Rc3 {[%clk 0:02:39.8]} 30...
f6 {[%clk 0:01:19]} 31. Re1 {[%clk 0:02:34.6]} 31... Kh6 {[%clk 0:01:16.7]} 32.
Rg1 {[%clk 0:02:34.6]} 32... g5 {[%clk 0:01:14.8]} 33. Rh1 {[%clk 0:02:24.9]}
33... Kg6 {[%clk 0:01:14.4]} 34. Rc2 {[%clk 0:02:24.1]} 34... Rae8 {[%clk
0:01:13.6]} 35. Re2 {[%clk 0:02:21.7]} 35... g4 {[%clk 0:01:12.5]} 36. fxg4
{[%clk 0:02:18.9]} 36... Re4+ {[%clk 0:01:12.2]} 37. Kd3 {[%clk 0:02:19.2]}
37... Rxg4 {[%clk 0:01:11]} 38. Rg1 {[%clk 0:02:13.6]} 38... Ree4 {[%clk
0:01:08.6]} 39. Rf2 {[%clk 0:02:13.1]} 39... d4 {[%clk 0:00:58.8]} 40. exd4
{[%clk 0:02:08.6]} 40... Rxd4+ {[%clk 0:00:59.7]} 41. Kc3 {[%clk 0:02:08.2]}
41... a4 {[%clk 0:00:57.4]} 42. b4 {[%clk 0:02:03.1]} 42... Rc4+ {[%clk
0:00:56.9]} 43. Kb2 {[%clk 0:02:03.6]} 43... Rce4 {[%clk 0:00:54.1]} 44. Rf3
{[%clk 0:01:59]} 44... f5 {[%clk 0:00:50.9]} 45. Rgf1 {[%clk 0:01:56.8]} 45...
f4 {[%clk 0:00:46.7]} 46. gxf4 {[%clk 0:01:45.5]} 46... Kf5 {[%clk 0:00:44.9]}
47. Rd1 {[%clk 0:01:43.4]} 47... Rgxf4 {[%clk 0:00:40.2]} 48. Rxf4+ {[%clk
0:01:39.4]} 48... Rxf4 {[%clk 0:00:38.8]} 49. Rd7 {[%clk 0:01:40.3]} 49... Rxh4
{[%clk 0:00:38.6]} 50. Rxb7 {[%clk 0:01:40.2]} 50... Rh2+ {[%clk 0:00:37.9]} 51.
Kc3 {[%clk 0:01:40.5]} 51... Ra2 {[%clk 0:00:37.3]} 52. b5 {[%clk 0:01:32.1]}
52... cxb5 {[%clk 0:00:31.6]} 53. c6 {[%clk 0:01:31.8]} 53... Rxa3+ {[%clk
0:00:30.9]} 54. Kd4 {[%clk 0:01:25.3]} 54... Ke6 {[%clk 0:00:25.6]} 55. Rxb5
{[%clk 0:01:23.1]} 55... Kd6 {[%clk 0:00:24.9]} 56. Rc5 {[%clk 0:01:20.4]} 56...
Kc7 {[%clk 0:00:24.2]} 57. Rxh5 {[%clk 0:01:12.1]} 57... Kxc6 {[%clk 0:00:24]}
58. Kc4 {[%clk 0:01:12.7]} 58... Ra1 {[%clk 0:00:24]} 59. Rh6+ {[%clk
0:01:12.9]} 59... Kc7 {[%clk 0:00:24]} 60. Kb4 {[%clk 0:01:13.6]} 60... a3
{[%clk 0:00:24.2]} 61. Kb3 {[%clk 0:01:14.3]} 61... a2 {[%clk 0:00:24.3]} 62.
Kb2 {[%clk 0:01:14.8]} 62... Rf1 {[%clk 0:00:22.4]} 63. Kxa2 {[%clk 0:01:15]}
63... Rf5 {[%clk 0:00:22]} 64. Kb3 {[%clk 0:01:15.5]} 64... Kd7 {[%clk
0:00:22.1]} 65. Kc4 {[%clk 0:01:16]} 65... Ke7 {[%clk 0:00:22.2]} 66. Kd4 {[%clk
0:01:16.6]} 66... Rf6 {[%clk 0:00:22.3]} 67. Rh7+ {[%clk 0:01:15.9]} 67... Ke6
{[%clk 0:00:22.4]} 68. Rh8 {[%clk 0:01:16.8]} 68... Rf7 {[%clk 0:00:22.3]} 69.
Ke4 {[%clk 0:01:17.2]} 69... Rg7 {[%clk 0:00:18.3]} 70. Kf4 {[%clk 0:01:17.2]}
70... Kd6 {[%clk 0:00:18.3]} 71. Rh6+ {[%clk 0:01:17.4]} 71... Kd5 {[%clk
0:00:17.8]} 72. Kf5 {[%clk 0:01:18.3]} 72... Rf7+ {[%clk 0:00:17.8]} 73. Kg6
{[%clk 0:01:19]} 73... Rc7 {[%clk 0:00:17.4]} 74. Rh1 {[%clk 0:01:19.6]} 74...
Rc6+ {[%clk 0:00:17.2]} 75. Kf5 {[%clk 0:01:20.3]} 75... Rc4 {[%clk 0:00:17.2]}
76. Rd1+ {[%clk 0:01:21]} 76... Rd4 {[%clk 0:00:17.5]} 77. Ra1 {[%clk
0:01:21.6]} 77... Rd2 {[%clk 0:00:17.6]} 78. Ra5+ {[%clk 0:01:21.6]} 78... Kd6
{[%clk 0:00:17.8]} 79. Ra8 {[%clk 0:01:22.5]} 79... Rf2+ {[%clk 0:00:17.3]} 80.
Ke4 {[%clk 0:01:23.3]} 80... Re2+ {[%clk 0:00:17.3]} 81. Kd3 {[%clk 0:01:24.1]}
81... Re7 {[%clk 0:00:17.4]} 82. Ra6+ {[%clk 0:01:24.3]} 82... Ke5 {[%clk
0:00:16.9]} 83. Ke3 {[%clk 0:01:24.5]} 83... Kd5+ {[%clk 0:00:16.5]} 84. Kd3
{[%clk 0:01:24.7]} 84... Ke5 {[%clk 0:00:16.1]} 85. Ra5+ {[%clk 0:01:24.9]}
85... Kf6 {[%clk 0:00:16]} 86. Ra1 {[%clk 0:01:24.9]} 86... Re5 {[%clk 0:00:16]}
87. Kd4 {[%clk 0:01:25.4]} 87... Rf5 {[%clk 0:00:15.9]} 88. Rh1 {[%clk
0:01:26.1]} 88... Kg6 {[%clk 0:00:15.2]} 89. Ke4 {[%clk 0:01:26.3]} 89... Ra5
{[%clk 0:00:14.7]} 90. Rh8 {[%clk 0:01:26.4]} 90... Ra4+ {[%clk 0:00:14.7]} 91.
Ke5 {[%clk 0:01:27.1]} 91... Ra5+ {[%clk 0:00:15.1]} 92. Ke6 {[%clk 0:01:27.8]}
92... Ra6+ {[%clk 0:00:15.5]} 93. Kd5 {[%clk 0:01:28.6]} 93... Ra5+ {[%clk
0:00:15.8]} 94. Kc4 {[%clk 0:01:29.3]} 94... Ra4+ {[%clk 0:00:16.1]} 95. Kb5
{[%clk 0:01:30]} 95... Ra7 {[%clk 0:00:16]} 96. Re8 {[%clk 0:01:30]} 96... Rf7
{[%clk 0:00:15.9]} 97. Kc6 {[%clk 0:01:30]} 97... Rf6+ {[%clk 0:00:16.1]} 98.
Kd5 {[%clk 0:01:30.7]} 98... Rf5+ {[%clk 0:00:15.8]} 99. Ke4 {[%clk 0:01:31]}
99... Ra5 {[%clk 0:00:14.9]} 100. Rb8 {[%clk 0:01:30.5]} 100... Ra4+ {[%clk
0:00:14.4]} 101. Kf3 {[%clk 0:01:30.7]} 101... Ra3+ {[%clk 0:00:14.6]} 102. Ke2
{[%clk 0:01:31.4]} 102... Ra2+ {[%clk 0:00:14.9]} 103. Kd3 {[%clk 0:01:31.9]}
103... Ra3+ {[%clk 0:00:15.2]} 104. Kd4 {[%clk 0:01:32.6]} 104... Ra4+ {[%clk
0:00:15.3]} 105. Kc5 {[%clk 0:01:33.3]} 105... Ra5+ {[%clk 0:00:15.5]} 106. Kb4
{[%clk 0:01:34]} 106... Rf5 {[%clk 0:00:15.5]} 107. Rb6+ {[%clk 0:01:34.6]}
107... Kg5 {[%clk 0:00:15.8]} 108. Rb8 {[%clk 0:01:34.6]} 108... Rf6 {[%clk
0:00:15.8]} 109. Kc5 {[%clk 0:01:34.9]} 109... Rf5+ {[%clk 0:00:15.4]} 110. Kd4
{[%clk 0:01:34.7]} 110... Ra5 {[%clk 0:00:14.9]} 111. Rb4 {[%clk 0:01:35.3]}
111... Kf5 {[%clk 0:00:14.2]} 112. Ke3 {[%clk 0:01:35.2]} 112... Re5+ {[%clk
0:00:13.6]} 113. Kf3 {[%clk 0:01:35.4]} 1/2-1/2

[Event "Early-Titled-Tuesday-Blitz-May-28-2024"]
[Site "Chess.com"]
[Date "2024.05.28"]
[Round "4"]
[White "MKlose11"]
[Black "VacheH009"]
[Result "1-0"]
[WhiteElo "2607"]
[BlackElo "2540"]
[TimeControl "180+1"]
[EndTime "8:41:22 PDT"]
[Termination "MKlose11 won by checkmate"]

1. e4 {[%clk 0:03:00.9]} 1... e5 {[%clk 0:02:58]} 2. Nf3 {[%clk 0:02:54.8]} 2...
Nc6 {[%clk 0:02:57.3]} 3. d4 {[%clk 0:02:55.7]} 3... exd4 {[%clk 0:02:57.1]} 4.
Bc4 {[%clk 0:02:54.7]} 4... Nf6 {[%clk 0:02:57.1]} 5. O-O {[%clk 0:02:54.9]}
5... Nxe4 {[%clk 0:02:56.7]} 6. Re1 {[%clk 0:02:55.2]} 6... d5 {[%clk
0:02:56.5]} 7. Bxd5 {[%clk 0:02:55.8]} 7... Qxd5 {[%clk 0:02:57.2]} 8. Nc3
{[%clk 0:02:56.3]} 8... Qd7 {[%clk 0:02:57.6]} 9. Rxe4+ {[%clk 0:02:56.1]} 9...
Be7 {[%clk 0:02:56.2]} 10. Nxd4 {[%clk 0:02:56.3]} 10... f5 {[%clk 0:02:51]} 11.
Rf4 {[%clk 0:02:56.5]} 11... O-O {[%clk 0:02:50.5]} 12. Nxc6 {[%clk 0:02:56.3]}
12... Qxc6 {[%clk 0:02:42.5]} 13. Qd5+ {[%clk 0:02:56.3]} 13... Qxd5 {[%clk
0:02:41]} 14. Nxd5 {[%clk 0:02:57.2]} 14... Bd6 {[%clk 0:02:39.4]} 15. Rd4
{[%clk 0:02:57.3]} 15... Be5 {[%clk 0:02:23.9]} 16. Rd3 {[%clk 0:02:38.3]} 16...
c6 {[%clk 0:02:18.2]} 17. Ne7+ {[%clk 0:02:28.1]} 17... Kh8 {[%clk 0:02:16.2]}
18. Nxc8 {[%clk 0:02:27]} 18... Raxc8 {[%clk 0:02:13.5]} 19. Be3 {[%clk
0:02:26.8]} 19... h6 {[%clk 0:01:44.1]} 20. Rad1 {[%clk 0:02:15.7]} 20... Rf7
{[%clk 0:01:33.4]} 21. b3 {[%clk 0:02:12.9]} 21... a6 {[%clk 0:01:29.8]} 22. Rd7
{[%clk 0:02:05.2]} 22... Rc7 {[%clk 0:01:19.2]} 23. Rd8+ {[%clk 0:02:01.3]}
23... Kh7 {[%clk 0:01:19.1]} 24. Bb6 {[%clk 0:01:58.1]} 24... Rce7 {[%clk
0:01:15]} 25. Bc5 {[%clk 0:01:58.4]} 25... Rc7 {[%clk 0:01:12.4]} 26. Kf1 {[%clk
0:01:56.1]} 26... Bf6 {[%clk 0:01:01.7]} 27. R8d3 {[%clk 0:01:48.6]} 27... Rc8
{[%clk 0:00:56.6]} 28. g3 {[%clk 0:01:45.1]} 28... g5 {[%clk 0:00:45.4]} 29. Bb6
{[%clk 0:01:37.6]} 29... Re8 {[%clk 0:00:43.8]} 30. Bc5 {[%clk 0:01:34.8]} 30...
Rg8 {[%clk 0:00:40.3]} 31. Rf3 {[%clk 0:01:27.9]} 31... Be5 {[%clk 0:00:33.2]}
32. Re1 {[%clk 0:01:23.2]} 32... Bh8 {[%clk 0:00:30.6]} 33. Rd3 {[%clk
0:01:18.9]} 33... Bf6 {[%clk 0:00:28.6]} 34. Re6 {[%clk 0:01:17.8]} 34... Bg7
{[%clk 0:00:13.2]} 35. a4 {[%clk 0:01:13.7]} 35... Rc8 {[%clk 0:00:13]} 36. h3
{[%clk 0:01:12.4]} 36... Rcc7 {[%clk 0:00:12.8]} 37. Ke2 {[%clk 0:00:56.8]}
37... Rcd7 {[%clk 0:00:12.7]} 38. Rde3 {[%clk 0:00:55.3]} 38... f4 {[%clk
0:00:11.2]} 39. gxf4 {[%clk 0:00:53.9]} 39... Rxf4 {[%clk 0:00:12.1]} 40. Rf3
{[%clk 0:00:49.6]} 40... Rff7 {[%clk 0:00:07.1]} 41. Rxf7 {[%clk 0:00:47]} 41...
Rxf7 {[%clk 0:00:08]} 42. Ke3 {[%clk 0:00:46.5]} 42... h5 {[%clk 0:00:05]} 43.
f3 {[%clk 0:00:46.7]} 43... Bf6 {[%clk 0:00:04.1]} 44. Ke4 {[%clk 0:00:46]}
44... Kg7 {[%clk 0:00:01.5]} 45. Bd6 {[%clk 0:00:43.1]} 45... Bd8 {[%clk
0:00:02]} 46. Be5+ {[%clk 0:00:43.1]} 46... Kh7 {[%clk 0:00:02.6]} 47. c4 {[%clk
0:00:41.1]} 47... Be7 {[%clk 0:00:03.1]} 48. f4 {[%clk 0:00:36.3]} 48... gxf4
{[%clk 0:00:03.1]} 49. Bxf4 {[%clk 0:00:37.2]} 49... Bd8 {[%clk 0:00:03.7]} 50.
Rh6+ {[%clk 0:00:37.3]} 50... Kg7 {[%clk 0:00:03.7]} 51. Rxh5 {[%clk 0:00:38.2]}
51... Re7+ {[%clk 0:00:04]} 52. Re5 {[%clk 0:00:38.1]} 52... Rd7 {[%clk
0:00:03.9]} 53. Re6 {[%clk 0:00:29.7]} 53... Kf7 {[%clk 0:00:03.7]} 54. Rd6
{[%clk 0:00:29.5]} 54... Re7+ {[%clk 0:00:02.8]} 55. Kf5 {[%clk 0:00:28.7]}
55... Bc7 {[%clk 0:00:03.3]} 56. Rf6+ {[%clk 0:00:27]} 56... Kg7 {[%clk
0:00:03.9]} 57. Bxc7 {[%clk 0:00:25.1]} 57... Rxc7 {[%clk 0:00:04.8]} 58. Ke6
{[%clk 0:00:23.4]} 58... a5 {[%clk 0:00:05.3]} 59. Kd6 {[%clk 0:00:21.3]} 59...
Rc8 {[%clk 0:00:04.4]} 60. Re6 {[%clk 0:00:21.5]} 60... Rd8+ {[%clk 0:00:04.2]}
61. Kc5 {[%clk 0:00:18.5]} 61... Rd7 {[%clk 0:00:03.1]} 62. Rd6 {[%clk
0:00:17.5]} 62... Re7 {[%clk 0:00:02.8]} 63. Rd3 {[%clk 0:00:17.5]} 63... Kf6
{[%clk 0:00:01.1]} 64. Kb6 {[%clk 0:00:15.5]} 64... Kf5 {[%clk 0:00:01.7]} 65.
Kxa5 {[%clk 0:00:15.5]} 65... Ke4 {[%clk 0:00:02.4]} 66. Rg3 {[%clk 0:00:15.2]}
66... Kd4 {[%clk 0:00:02.7]} 67. Kb6 {[%clk 0:00:14.8]} 67... Rf7 {[%clk
0:00:01.8]} 68. a5 {[%clk 0:00:15.2]} 68... Rf6 {[%clk 0:00:01]} 69. h4 {[%clk
0:00:15.6]} 69... Rf7 {[%clk 0:00:01.2]} 70. h5 {[%clk 0:00:15.5]} 70... Rh7
{[%clk 0:00:01.8]} 71. Rh3 {[%clk 0:00:15.9]} 71... Ke4 {[%clk 0:00:02]} 72. h6
{[%clk 0:00:16.3]} 72... Kd4 {[%clk 0:00:02.1]} 73. b4 {[%clk 0:00:16.8]} 73...
Kxc4 {[%clk 0:00:02]} 74. Rh4+ {[%clk 0:00:16.8]} 74... Kb3 {[%clk 0:00:02.5]}
75. a6 {[%clk 0:00:13.4]} 75... bxa6 {[%clk 0:00:03.4]} 76. Kxa6 {[%clk
0:00:13.7]} 76... Ka4 {[%clk 0:00:01.8]} 77. Kb6 {[%clk 0:00:13.8]} 77... Kb3
{[%clk 0:00:01.4]} 78. Kxc6 {[%clk 0:00:14]} 78... Ka4 {[%clk 0:00:01]} 79. b5+
{[%clk 0:00:14.4]} 79... Ka5 {[%clk 0:00:01.9]} 80. b6 {[%clk 0:00:15.1]} 80...
Ka6 {[%clk 0:00:02.8]} 81. Ra4# {[%clk 0:00:14.9]} 1-0